fUSD/lending_fUSD_20240223
["ID","MTS","AMOUNT","RATE_DAILY","PERIOD"]
[315016475,1708731062394,-1046.3,0.00029035,2]
[315016476,1708731062404,-500.0,0.00029041,2]
[315016477,1708731062414,-500.0,0.00029041,2]
[315016478,1708731062424,-500.0,0.00029041,2]
[315016479,1708731062434,-500.0,0.00029041,2]
[315016480,1708731062444,-500.0,0.00029041,2]
[315016481,1708731062453,-500.0,0.00029041,2]
[315016482,1708731062462,-500.0,0.00029041,2]
[315016483,1708731062471,-500.0,0.00029041,2]
[315016484,1708731062480,-500.0,0.00029041,2]
[315016485,1708731062489,-688.22,0.00029041,2]
[315016486,1708731062500,-500.0,0.00029041,2]
[315016487,1708731062511,-1049.66,0.00029041,2]
[315016488,1708731062524,-500.0,0.00029041,2]
[315016489,1708731062534,-500.0,0.00029041,2]
[315016490,1708731062544,-597.21,0.00029041,2]
[315016491,1708731062553,-500.0,0.00029041,2]
[315016492,1708731062563,-500.0,0.00029041,2]
[315016493,1708731062573,-500.0,0.00029041,2]
[315016494,1708731062582,-500.0,0.00029041,2]
[315016495,1708731062592,-500.0,0.00029041,2]
[315016496,1708731062601,-500.0,0.00029041,2]
[315016497,1708731062611,-500.0,0.00029041,2]
[315016498,1708731062621,-500.0,0.00029041,2]
[315016499,1708731062632,-500.0,0.00029041,2]
[315016500,1708731062642,-245.61410696,0.00029041,2]
[315016501,1708731062653,-500.0,0.00029041,2]
[315016502,1708731062663,-623.83,0.00029041,2]
[315016503,1708731062675,-500.0,0.00029041,2]
[315016504,1708731062685,-500.0,0.00029041,2]
[315016505,1708731062694,-500.0,0.00029041,2]
[315016506,1708731062706,-500.0,0.00029041,2]
[315016507,1708731062716,-579.71,0.00029041,2]
[315016508,1708731062725,-500.0,0.00029041,2]
[315016509,1708731062734,-500.0,0.00029041,2]
[315016510,1708731062744,-500.0,0.00029041,2]
[315016511,1708731062754,-2429.16136658,0.00029117,2]
[315016512,1708731062763,-508.60850008,0.0002914,2]
[315016513,1708731062772,-150.0,0.0002914,2]
[315016514,1708731062781,-500.0,0.00029178,2]
[315016515,1708731062790,-500.0,0.00029178,2]
[315016516,1708731062799,-500.0,0.00029178,2]
[315016517,1708731062808,-500.0,0.00029178,2]
[315016518,1708731062818,-500.0,0.00029178,2]
[315016519,1708731062827,-500.0,0.00029178,2]
[315016520,1708731062836,-500.0,0.00029178,2]
[315016521,1708731062845,-500.0,0.00029178,2]
[315016522,1708731062854,-500.0,0.00029178,2]
[315016523,1708731062863,-688.22,0.00029178,2]
[315016524,1708731062874,-500.0,0.00029178,2]
[315016525,1708731062884,-1049.66,0.00029178,2]
[315016526,1708731062895,-355.77622882,0.00029178,2]
[315016527,1708731062905,-500.0,0.00029178,2]
[315016528,1708731062914,-478.61598238,0.00029178,2]
[315016529,1708731062924,-500.0,0.00029178,2]
[315016530,1708731062933,-500.0,0.00029178,2]
[315016531,1708731062944,-204.9519271,0.00029178,2]
[315016532,1708731062954,-500.0,0.00029178,2]
[315016533,1708731062963,-255.34425209,0.00029178,2]
[315016534,1708731062972,-500.0,0.00029178,2]
[315016535,1708731062981,-500.0,0.00029178,2]
[315016536,1708731062991,-500.0,0.00029178,2]
[315016537,1708731063002,-623.83,0.00029178,2]
[315016538,1708731063012,-500.0,0.00029178,2]
[315016539,1708731063022,-309.6639794,0.00029178,2]
[315016540,1708731063032,-500.0,0.00029178,2]
[315016541,1708731063042,-500.0,0.00029178,2]
[315016542,1708731063052,-579.71,0.00029178,2]
[315016543,1708731063062,-500.0,0.00029178,2]
[315016544,1708731063071,-308.35481818,0.00029178,2]
[315016545,1708731063081,-500.0,0.00029178,2]
[315016546,1708731063091,-500.0,0.00029315,2]
[315016547,1708731063101,-500.0,0.00029315,2]
[315016548,1708731063111,-500.0,0.00029315,2]
[315016549,1708731063120,-500.0,0.00029315,2]
[315016550,1708731063129,-501.01039976,0.00029315,2]
[315016551,1708731063138,-500.0,0.00029315,2]
[315016552,1708731063148,-415.01,0.00029315,2]
[315016553,1708731063158,-500.0,0.00029315,2]
[315016554,1708731063167,-688.22,0.00029315,2]
[315016555,1708731063176,-500.0,0.00029315,2]
[315016556,1708731063186,-1049.66,0.00029315,2]
[315016557,1708731063197,-500.0,0.00029315,2]
[315016558,1708731063207,-500.0,0.00029315,2]
[315016559,1708731063216,-500.0,0.00029315,2]
[315016560,1708731063225,-500.0,0.00029315,2]
[315016561,1708731063235,-500.0,0.00029315,2]
[315016562,1708731063244,-500.0,0.00029315,2]
[315016563,1708731063253,-334.36,0.00029315,2]
[315016564,1708731063263,-623.83,0.00029315,2]
[315016565,1708731063272,-500.0,0.00029315,2]
[315016566,1708731063282,-500.0,0.00029315,2]
[315016567,1708731063290,-579.71,0.00029315,2]
[315016568,1708731063300,-256.9041053,0.00029315,2]
[315016569,1708731063310,-500.0,0.00029315,2]
[315016570,1708731063319,-500.0,0.00029452,2]
[315016571,1708731063328,-500.0,0.00029452,2]
[315016572,1708731063337,-500.0,0.00029452,2]
[315016573,1708731063346,-500.0,0.00029452,2]
[315016574,1708731063356,-500.0,0.00029452,2]
[315016575,1708731063365,-500.0,0.00029452,2]
[315016576,1708731063374,-688.22,0.00029452,2]
[315016577,1708731063383,-1049.66,0.00029452,2]
[315016578,1708731063392,-500.0,0.00029452,2]
[315016579,1708731063401,-500.0,0.00029452,2]
[315016580,1708731063410,-500.0,0.00029452,2]
[315016581,1708731063419,-500.0,0.00029452,2]
[315016582,1708731063428,-623.83,0.00029452,2]
[315016583,1708731063437,-500.0,0.00029452,2]
[315016584,1708731063447,-523.59,0.00029452,2]
[315016585,1708731063456,-579.71,0.00029452,2]
[315016586,1708731063466,-500.0,0.00029452,2]
[315016587,1708731063475,-177.74,0.0002954,2]
[315016588,1708731063484,-4236.61955136,0.00029557,2]
[315016589,1708731063493,-500.0,0.00029589,2]
[315016590,1708731063502,-500.0,0.00029589,2]
[315016591,1708731063513,-572.72,0.00029589,2]
[315016592,1708731063524,-500.0,0.00029589,2]
[315016593,1708731063533,-635.83,0.00029589,2]
[315016594,1708731063543,-500.0,0.00029589,2]
[315016595,1708731063552,-688.22,0.00029589,2]
[315016596,1708731063562,-1049.66,0.00029589,2]
[315016597,1708731063571,-500.0,0.00029589,2]
[315016598,1708731063580,-500.0,0.00029589,2]
[315016599,1708731063590,-500.0,0.00029589,2]
[315016600,1708731063599,-500.0,0.00029589,2]
[315016601,1708731063608,-623.83,0.00029589,2]
[315016602,1708731063617,-500.0,0.00029589,2]
[315016603,1708731063626,-579.71,0.00029589,2]
[315016604,1708731063635,-500.0,0.00029726,2]
[315016605,1708731063645,-216.96202189,0.00029726,2]
[315016606,1708731063655,-688.22,0.00029726,2]
[315016607,1708731063664,-1049.66,0.00029726,2]
[315016608,1708731063673,-500.0,0.00029726,2]
[315016609,1708731063682,-500.0,0.00029726,2]
[315016610,1708731063691,-500.0,0.00029726,2]
[315016611,1708731063700,-623.83,0.00029726,2]
[315016612,1708731063709,-500.0,0.00029726,2]
[315016613,1708731063718,-579.71,0.00029726,2]
[315016614,1708731063727,-572.59658732,0.00029863,2]
[315016615,1708731063736,-688.22,0.00029863,2]
[315016616,1708731063746,-1049.66,0.00029863,2]
[315016617,1708731063755,-500.0,0.00029863,2]
[315016618,1708731063764,-603.32,0.00029863,2]
[315016619,1708731063773,-623.83,0.00029863,2]
[315016620,1708731063783,-500.0,0.00029863,2]
[315016621,1708731063791,-579.71,0.00029863,2]
[315016622,1708731063801,-1612.48997879,0.0002987,4]
[315016623,1708731063809,-688.22,0.00029999,2]
[315016624,1708731063818,-1049.66,0.00029999,2]
[315016625,1708731063828,-500.0,0.00029999,2]
[315016626,1708731063837,-623.83,0.00029999,2]
[315016627,1708731063846,-477.9,0.00029999,2]
[315016628,1708731063855,-579.71,0.00029999,2]
[315016629,1708731063864,-456.09176832,0.0003,2]
[315016630,1708731063873,-1000.0,0.00030007,2]
[315016631,1708731063882,-2067.07,0.00030056,2]
[315016632,1708731063892,-177.74,0.00030088,2]
[315016633,1708731063901,-1630.0,0.000301,2]
[315016634,1708731063910,-688.22,0.00030136,2]
[315016635,1708731063919,-1049.66,0.00030136,2]
[315016636,1708731063929,-500.0,0.00030136,2]
[315016637,1708731063938,-623.83,0.00030136,2]
[315016638,1708731063946,-579.71,0.00030136,2]
[315016639,1708731063955,-150.47,0.00030137,2]
[315016640,1708731063964,-688.22,0.00030273,2]
[315016641,1708731063974,-1049.66,0.00030273,2]
[315016642,1708731063982,-500.0,0.00030273,2]
[315016643,1708731063992,-623.83,0.00030273,2]
[315016644,1708731064000,-579.71,0.00030273,2]
[315016645,1708731064010,-688.22,0.0003041,2]
[315016646,1708731064019,-1049.66,0.0003041,2]
[315016647,1708731064028,-500.0,0.0003041,2]
[315016648,1708731064038,-623.83,0.0003041,2]
[315016649,1708731064047,-579.71,0.0003041,2]
[315016650,1708731064056,-688.34,0.00030547,2]
[315016651,1708731064214,-1049.76,0.00030547,2]
[315016652,1708731064224,-624.04,0.00030547,2]
[315016653,1708731064234,-579.71,0.00030547,2]
[315016654,1708731064243,-177.74,0.00030636,2]
[315016655,1708731064252,-900.0,0.00031,3]
[315016656,1708731064261,-177.74,0.00031184,2]
[315016657,1708731064271,-1046.3,0.00031299,2]
[315016658,1708731064280,-1500.0,0.000315,2]
[315016659,1708731064289,-150.47,0.00031703,2]
[315016660,1708731064299,-354.77,0.00031732,2]
[315016661,1708731064308,-107314.824393,0.000318,2]
[315016662,1708731064317,-4236.61955136,0.00031822,3]
[315016663,1708731064326,-202.96652653,0.0003198,6]
[315016664,1708731064335,-4860.8064293,0.0003198,7]
[315016665,1708731064344,-540.08960325,0.0003198,7]
[315016666,1708731064353,-2429.16136658,0.00032015,2]
[315016667,1708731064362,-18949.06934497,0.000324,7]
[315016668,1708731064371,-16912.90921165,0.000324,7]
[315016669,1708731064381,-1650.58152378,0.000324,7]
[315016670,1708731064390,-1000.0,0.00032735,2]
[315016671,1708731064399,-150.1,0.00032877,2]
[315016672,1708731064409,-162.01,0.00032877,2]
[315016673,1708731064418,-319.14,0.00032877,2]
[315016674,1708731064427,-161.43,0.00032877,2]
[315016675,1708731064437,-150.0,0.00032877,2]
[315016676,1708731064446,-250.0,0.00032877,2]
[315016677,1708731064455,-1630.0,0.000329,2]
[315016678,1708731064463,-950.0,0.00033,3]
[315016679,1708731064472,-150.47,0.00033268,2]
[315016680,1708731064481,-1612.48997879,0.00033424,6]
[315016681,1708731064490,-1046.3,0.00033562,2]
[315016682,1708731064499,-3059.0,0.000336,2]
[315016683,1708731064509,-15505.0,0.000336,2]
[315016684,1708731064519,-151.0,0.00033636,120]
[315016685,1708731064529,-150.0,0.00033742,2]
[315016686,1708731064538,-153.43437172,0.000339,2]
[315016687,1708731064547,-153.43437172,0.000339,2]
[315016688,1708731064557,-4236.61955136,0.00034086,6]
[315016689,1708731064566,-204.0,0.00034189,2]
[315016690,1708731064575,-204.0,0.00034189,2]
[315016691,1708731064585,-165.46,0.00034283,2]
[315016692,1708731064595,-151.0,0.00034323,30]
[315016693,1708731064605,-150.0,0.00034607,2]
[315016694,1708731064615,-150.47,0.00034834,2]
[315016695,1708731064624,-1799.12,0.000349,2]
[315016696,1708731064633,-2180.53640836,0.000349,2]
[315016697,1708731064644,-2180.53640825,0.000349,2]
[315016698,1708731064653,-2180.53640825,0.000349,2]
[315016699,1708731064662,-2180.53640825,0.000349,2]
[315016700,1708731064672,-2180.53640825,0.000349,2]
[315016701,1708731064682,-2180.53640825,0.000349,2]
[315016702,1708731064692,-2180.53640825,0.000349,2]
[315016703,1708731064701,-2180.53640825,0.000349,2]
[315016704,1708731064710,-2429.16136658,0.00034912,2]
[315016705,1708731064720,-100000.0,0.00035,5]
[315016706,1708731064729,-586.90975074,0.00035,4]
[315016707,1708731064739,-229.20433756,0.00035,7]
[315016708,1708731064748,-1731.63226504,0.00035,14]
[315016709,1708731064758,-1000.0,0.00035,3]
[315016710,1708731064767,-1191902.93696473,0.00035,2]
[315016711,1708731064777,-9374.69964265,0.00035,2]
[315016712,1708731064787,-151.0,0.00035023,7]
[315016713,1708731064796,-150.0,0.00035472,2]
[315016714,1708731064806,-204.0,0.00035548,5]
[315016715,1708731064815,-2250.0,0.000356,2]
[315016716,1708731064824,-1847.7,0.00035616,2]
[315016717,1708731064834,-958.8,0.00035616,2]
[315016718,1708731064872,-1708.23,0.000357,7]
[315016719,1708731064882,-1350.02,0.000357,7]
[315016720,1708731064891,-1719.49,0.000357,7]
[315016721,1708731064901,-7894.97625054,0.00035737,2]
[315016722,1708731064910,-370.74488974,0.00035737,2]
[315016723,1708731064920,-1628.13431942,0.00035737,2]
[315016724,1708731064929,-151.0,0.00035738,4]
[315016725,1708731064939,-173.17724569,0.00035778,2]
[315016726,1708731064948,-1046.3,0.00035826,2]
[315016727,1708731064957,-4350.80044633,0.0003589,2]
[315016728,1708731064966,-2180.53640825,0.00035954,2]
[315016729,1708731064975,-100000.0,0.00036,6]
[315016730,1708731064984,-597.69811164,0.00036231,2]
[315016731,1708731064994,-150.0,0.00036337,2]
[315016732,1708731065004,-4236.61955136,0.00036351,9]
[315016733,1708731065014,-150.47,0.00036399,2]
[315016734,1708731065023,-151.0,0.00036467,2]
[315016735,1708731065033,-1708.23,0.000367,7]
[315016736,1708731065043,-1350.02,0.000368,7]
[315016737,1708731065053,-1719.49,0.000368,7]
[315016738,1708731065063,-204.0,0.00036906,8]
[315016739,1708731065073,-1612.48997879,0.00036978,8]
[315016740,1708731065084,-666.0,0.00036986,2]
[315016741,1708731065093,-100000.0,0.00037,7]
[315016742,1708731065103,-1050.0,0.00037,3]
[315016743,1708731065113,-4000.0,0.00037,2]
[315016744,1708731065123,-150.0,0.00037203,2]
[315016745,1708731065134,-2180.53640825,0.00037533,2]
[315016746,1708731065145,-180.0,0.00037671,2]
[315016747,1708731065155,-2429.16136658,0.0003781,2]
[315016748,1708731065164,-150.0,0.00037857,7]
[315016749,1708731065174,-678541.102704,0.000379,2]
[315016750,1708731065184,-150.47,0.00037965,2]
[315016751,1708731065193,-100000.0,0.00038,8]
[315016752,1708731065203,-145942.0,0.00038,2]
[315016753,1708731065213,-150.0,0.00038068,2]
[315016754,1708731065223,-1046.3,0.0003809,2]
[315016755,1708731065232,-1708.23,0.000381,7]
[315016756,1708731065242,-1350.02,0.000382,7]
[315016757,1708731065251,-1719.49,0.000382,7]
[315016758,1708731065261,-244.24766075,0.00038249,11]
[315016759,1708731065270,-204.0,0.00038264,11]
[315016760,1708731065281,-3196.73,0.00038356,15]
[315016761,1708731065291,-276.0,0.00038396,2]
[315016762,1708731065300,-859.0,0.00038396,2]
[315016763,1708731065309,-471.681,0.00038396,2]
[315016764,1708731065319,-150.0,0.00038396,2]
[315016765,1708731065328,-1138.0,0.00038396,2]
[315016766,1708731065337,-343.0,0.00038396,2]
[315016767,1708731065346,-2891.0,0.00038396,2]
[315016768,1708731065355,-321.0,0.00038396,2]
[315016769,1708731065365,-454.0,0.00038396,2]
[315016770,1708731065375,-5635.316,0.00038396,2]
[315016771,1708731065384,-8177.0,0.00038396,2]
[315016772,1708731065395,-2695.0,0.00038396,2]
[315016773,1708731065404,-2932.0,0.00038396,2]
[315016774,1708731065414,-4107.0,0.00038396,2]
[315016775,1708731065423,-7429.0,0.00038396,2]
[315016776,1708731065433,-33527.319,0.00038396,2]
[315016777,1708731065442,-2295.0,0.00038396,2]
[315016778,1708731065452,-19879.0,0.00038396,2]
[315016779,1708731065461,-955.0,0.00038396,2]
[315016780,1708731065471,-458.0,0.00038396,2]
[315016781,1708731065480,-1988.94171684,0.00038579,10]
[315016782,1708731065490,-4236.61955136,0.00038615,12]
[315016783,1708731065500,-175.564284,0.0003865,7]
[315016784,1708731065510,-243.993905,0.0003865,7]
[315016785,1708731065522,-152.629729,0.0003865,7]
[315016786,1708731065531,-152.629729,0.0003865,7]
[315016787,1708731065541,-175.564284,0.0003865,7]
[315016788,1708731065550,-152.669311,0.0003865,7]
[315016789,1708731065561,-2090.74,0.00038689,7]
[315016790,1708731065570,-2090.74,0.00038689,7]
[315016791,1708731065579,-2090.74,0.00038689,7]
[315016792,1708731065589,-2090.74,0.00038689,7]
[315016793,1708731065599,-150.0,0.00038933,2]
[315016794,1708731065609,-2090.74,0.00038962,7]
[315016795,1708731065618,-2090.74,0.00038962,7]
[315016796,1708731065628,-100000.0,0.00039,9]
[315016797,1708731065637,-1100.0,0.00039,3]
[315016798,1708731065648,-25077.58481992,0.00039,30]
[315016799,1708731065658,-5336.97149579,0.00039,30]
[315016800,1708731065668,-7073.00176482,0.00039,7]
[315016801,1708731065679,-212.55349277,0.00039,33]
[315016802,1708731065690,-20222.29638452,0.00039,14]
[315016803,1708731065699,-312.74,0.00039,2]
[315016804,1708731065708,-200.0,0.00039,30]
[315016805,1708731065718,-6892.55022949,0.00039057,2]
[315016806,1708731065727,-1708.23,0.000391,7]
[315016807,1708731065737,-2180.53640825,0.00039111,2]
[315016808,1708731065746,-2090.74,0.00039235,7]
[315016809,1708731065755,-2090.74,0.00039235,7]
[315016810,1708731065765,-1000.0,0.0003926,2]
[315016811,1708731065774,-152.0,0.000393,7]
[315016812,1708731065784,-1350.02,0.000394,7]
[315016813,1708731065793,-1719.49,0.000394,7]
[315016814,1708731065802,-281.743159,0.00039452,14]
[315016815,1708731065812,-200.0,0.000395,13]
[315016816,1708731065821,-2090.74,0.00039508,7]
[315016817,1708731065831,-2090.74,0.00039508,7]
[315016818,1708731065840,-150.47,0.0003953,2]
[315016819,1708731065849,-204.0,0.00039623,14]
[315016820,1708731065859,-1156.92566322,0.000397,2]
[315016821,1708731065868,-2090.74,0.00039781,7]
[315016822,1708731065878,-2090.74,0.00039781,7]
[315016823,1708731065887,-150.0,0.00039798,2]
[315016824,1708731065900,-361.48224482,0.000399,2]
[315016825,1708731065909,-268.83123177,0.00039999,31]
[315016826,1708731065919,-159.1769536,0.00039999,31]
[315016827,1708731065928,-374.76307206,0.00039999,31]
[315016828,1708731065938,-224.2610868,0.00039999,31]
[315016829,1708731065947,-244.88371365,0.00039999,31]
[315016830,1708731065956,-100000.0,0.0004,20]
[315016831,1708731065965,-200.0,0.0004,2]
[315016832,1708731065975,-1518.1266527,0.0004,4]
[315016833,1708731065984,-1636.662,0.0004,14]
[315016834,1708731065994,-1129.25304651,0.0004,10]
[315016835,1708731066004,-1780.30623281,0.0004,30]
[315016836,1708731066014,-386.59723616,0.0004,10]
[315016837,1708731066023,-500.0,0.0004,6]
[315016838,1708731066034,-224.44481244,0.0004,10]
[315016839,1708731066044,-486.08064292,0.0004,10]
[315016840,1708731066054,-255.0,0.0004,12]
[315016841,1708731066063,-500000.0,0.0004,4]
[315016842,1708731066073,-2090.74,0.00040055,7]
[315016843,1708731066083,-2090.74,0.00040055,7]
[315016844,1708731066093,-161.43,0.00040183,2]
[315016845,1708731066103,-281.743159,0.00040274,14]
[315016846,1708731066113,-359.02,0.00040295,2]
[315016847,1708731066122,-2000.0,0.000403,2]
[315016848,1708731066132,-2090.74,0.00040328,7]
[315016849,1708731066142,-2090.74,0.00040328,7]
[315016850,1708731066152,-1046.3,0.00040354,2]
[315016851,1708731066162,-666.0,0.0004041,2]
[315016852,1708731066172,-200.0,0.000405,14]
[315016853,1708731066181,-151.0,0.00040519,2]
[315016854,1708731066191,-250.49088,0.00040519,2]
[315016855,1708731066201,-1612.48997879,0.00040532,9]
[315016856,1708731066210,-234.765,0.00040547,2]
[315016857,1708731066220,-1000.0,0.000406,15]
[315016858,1708731066229,-500.0,0.000406,15]
[315016859,1708731066238,-2090.74,0.00040601,7]
[315016860,1708731066248,-2090.74,0.00040601,7]
[315016861,1708731066257,-150.0,0.00040663,2]
[315016862,1708731066267,-2180.53640825,0.0004069,5]
[315016863,1708731066277,-1708.23,0.000407,7]
[315016864,1708731066286,-2429.16136658,0.00040707,3]
[315016865,1708731066296,-1000.0,0.00040733,2]
[315016866,1708731066307,-1350.02,0.000408,7]
[315016867,1708731066316,-1719.49,0.000408,7]
[315016868,1708731066326,-1000.0,0.000408,4]
[315016869,1708731066336,-2090.74,0.00040874,7]
[315016870,1708731066346,-2090.74,0.00040874,7]
[315016871,1708731066355,-4236.61955136,0.0004088,15]
[315016872,1708731066365,-1000.0,0.000409,15]
[315016873,1708731066374,-204.0,0.00040981,17]
[315016874,1708731066384,-4754.94150745,0.00040997,2]
[315016875,1708731066396,-100000.0,0.00041,21]
[315016876,1708731066404,-1150.0,0.00041,3]
[315016877,1708731066413,-192.0,0.00041,30]
[315016878,1708731066422,-1000.0,0.00041095,30]
[315016879,1708731066432,-150.1,0.00041096,2]
[315016880,1708731066441,-281.743159,0.00041096,14]
[315016881,1708731066450,-183.0,0.00041096,2]
[315016882,1708731066459,-688.88,0.00041096,2]
[315016883,1708731066469,-2400.0,0.00041096,15]
[315016884,1708731066479,-150.47,0.00041096,2]
[315016885,1708731066488,-150.0,0.000411,16]
[315016886,1708731066498,-150.0,0.000411,46]
[315016887,1708731066508,-200.0,0.000411,3]
[315016888,1708731066522,-191.81076,0.000411,2]
[315016889,1708731066532,-151.0,0.000411,12]
[315016890,1708731066542,-1125.0,0.000411,2]
[315016891,1708731066552,-150.0,0.000411,18]
[315016892,1708731066562,-2090.74,0.00041148,15]
[315016893,1708731066572,-2090.74,0.00041148,15]
[315016894,1708731066582,-1301.72,0.0004115,2]
[315016895,1708731066592,-153.43437172,0.00041167,11]
[315016896,1708731066602,-1000.0,0.000412,15]
[315016897,1708731066611,-302.0,0.000412,4]
[315016898,1708731066620,-469.53,0.00041369,6]
[315016899,1708731066630,-2090.74,0.00041421,15]
[315016900,1708731066639,-2090.74,0.00041421,15]
[315016901,1708731066652,-150.5,0.0004146,7]
[315016902,1708731066661,-195.0,0.0004147,3]
[315016903,1708731066671,-163.0,0.0004147,120]
[315016904,1708731066681,-150.5,0.0004147,7]
[315016905,1708731066690,-195.0,0.0004148,3]
[315016906,1708731066701,-265.27,0.0004148,120]
[315016907,1708731066710,-151.24,0.0004148,120]
[315016908,1708731066720,-163.0,0.0004148,120]
[315016909,1708731066729,-150.5,0.0004148,7]
[315016910,1708731066738,-245.46,0.0004149,120]
[315016911,1708731066747,-195.0,0.0004149,3]
[315016912,1708731066757,-194.24,0.0004149,120]
[315016913,1708731066766,-153.93,0.0004149,120]
[315016914,1708731066775,-150.5,0.0004149,120]
[315016915,1708731066784,-150.5,0.0004149,120]
[315016916,1708731066794,-163.0,0.0004149,120]
[315016917,1708731066803,-200.0,0.000415,15]
[315016918,1708731066812,-1000.0,0.000415,15]
[315016919,1708731066821,-150.0,0.00041528,2]
[315016920,1708731066831,-151.0,0.000416,13]
[315016921,1708731066840,-1000.0,0.000416,6]
[315016922,1708731066850,-219.82318411,0.00041726,30]
[315016923,1708731066860,-1000.0,0.000418,15]
[315016924,1708731066869,-500.0,0.000418,2]
[315016925,1708731066879,-500.0,0.000418,2]
[315016926,1708731066888,-500.0,0.000418,2]
[315016927,1708731066901,-500.0,0.000418,2]
[315016928,1708731066910,-500.0,0.000418,2]
[315016929,1708731066919,-500.0,0.000418,2]
[315016930,1708731066928,-500.0,0.000418,2]
[315016931,1708731066937,-500.0,0.000418,2]
[315016932,1708731066946,-500.0,0.000418,2]
[315016933,1708731066956,-500.0,0.000418,2]
[315016934,1708731066965,-500.0,0.000418,2]
[315016935,1708731066974,-500.0,0.000418,2]
[315016936,1708731066983,-500.0,0.000418,2]
[315016937,1708731066992,-500.0,0.000418,2]
[315016938,1708731067002,-500.0,0.000418,2]
[315016939,1708731067012,-500.0,0.000418,2]
[315016940,1708731067021,-500.0,0.000418,2]
[315016941,1708731067033,-500.0,0.000418,2]
[315016942,1708731067043,-500.0,0.000418,2]
[315016943,1708731067052,-500.0,0.000418,2]
[315016944,1708731067062,-500.0,0.000418,2]
[315016945,1708731067071,-500.0,0.000418,2]
[315016946,1708731067081,-500.0,0.000418,2]
[315016947,1708731067091,-500.0,0.000418,2]
[315016948,1708731067101,-500.0,0.000418,2]
[315016949,1708731067110,-500.0,0.000418,2]
[315016950,1708731067119,-500.0,0.000418,2]
[315016951,1708731067129,-500.0,0.000418,2]
[315016952,1708731067139,-500.0,0.000418,2]
[315016953,1708731067152,-500.0,0.000418,2]
[315016954,1708731067161,-500.0,0.000418,2]
[315016955,1708731067170,-235.55621466,0.000418,2]
[315016956,1708731067180,-500.0,0.000418,2]
[315016957,1708731067190,-500.0,0.000418,2]
[315016958,1708731067200,-500.0,0.000418,2]
[315016959,1708731067210,-500.0,0.000418,2]
[315016960,1708731067219,-500.0,0.000418,2]
[315016961,1708731067228,-500.0,0.000418,2]
[315016962,1708731067237,-500.0,0.000418,2]
[315016963,1708731067246,-500.0,0.000418,2]
[315016964,1708731067255,-500.0,0.000418,2]
[315016965,1708731067265,-500.0,0.000418,2]
[315016966,1708731067274,-500.0,0.000418,2]
[315016967,1708731067284,-500.0,0.000418,2]
[315016968,1708731067293,-500.0,0.000418,2]
[315016969,1708731067303,-500.0,0.000418,2]
[315016970,1708731067312,-500.0,0.000418,2]
[315016971,1708731067322,-500.0,0.000418,2]
[315016972,1708731067331,-500.0,0.000418,2]
[315016973,1708731067341,-500.0,0.000418,2]
[315016974,1708731067350,-500.0,0.000418,2]